{"text_format":"1","workbook":"xlsx","n_sheets":2,"sheets":["2014-2015","admin"],"not_rendered":{"charts":0,"images":0,"macros":1,"external_links":0,"defined_names":1,"comments":1,"pivot_tables":0},"unopened":[],"bounds":{"document_bytes":16777216,"sheet_cells":100000,"rows_first":2000,"rows_last":500,"rows_between":2000,"halvings":0,"cell_chars":16384,"cell_head_chars":4096},"cells_cut":0,"cells_raw":0,"read":"whole","date_system":"1900"}

{"sheet":"2014-2015","index":0,"n_rows":37,"n_cols":28,"rows_kept":37,"cut":false,"hidden":false,"merged":[[0,1,0,2],[0,4,0,11],[2,4,2,7],[2,8,2,11],[1,4,1,11],[1,0,3,0],[1,20,1,27],[2,20,2,23],[2,24,2,27],[2,1,2,3],[1,1,1,2],[1,12,1,19],[2,12,2,15],[2,16,2,19]]}
["Choose language","English"]
[{"$f":"admin!B4","v":"Crops"},null,null,null,{"$f":"admin!$B$46","v":"[Name of the company / or the name of the borrower]"},null,null,null,null,null,null,null,{"$f":"admin!$B$46","v":"[Name of the company / or the name of the borrower]"},null,null,null,null,null,null,null,{"$f":"admin!$B$46","v":"[Name of the company / or the name of the borrower]"}]
[null,"平均值计算",null,null,{"$f":"admin!$B$47","v":"PLAN"},null,null,null,{"$f":"admin!$B$48","v":"FACT"},null,null,null,{"$f":"admin!$B$47","v":"PLAN"},null,null,null,{"$f":"admin!$B$48","v":"FACT"},null,null,null,{"$f":"admin!$B$47","v":"PLAN"},null,null,null,{"$f":"admin!$B$48","v":"FACT"}]
[null,{"$f":"F4","v":"yield from 1 mu"},{"$f":"G4","v":"price for 1 ton"},{"$f":"admin!B52","v":"cost of 1 mu"},{"$f":"admin!$B$49","v":"mu"},{"$f":"admin!$B$50","v":"yield from 1 mu"},{"$f":"admin!$B$51","v":"price for 1 ton"},{"$f":"admin!$B$52","v":"cost of 1 mu"},{"$f":"admin!$B$49","v":"mu"},{"$f":"admin!$B$50","v":"yield from 1 mu"},{"$f":"admin!$B$51","v":"price for 1 ton"},{"$f":"admin!$B$52","v":"cost of 1 mu"},{"$f":"admin!$B$49","v":"mu"},{"$f":"admin!$B$50","v":"yield from 1 mu"},{"$f":"admin!$B$51","v":"price for 1 ton"},{"$f":"admin!$B$52","v":"cost of 1 mu"},{"$f":"admin!$B$49","v":"mu"},{"$f":"admin!$B$50","v":"yield from 1 mu"},{"$f":"admin!$B$51","v":"price for 1 ton"},{"$f":"admin!$B$52","v":"cost of 1 mu"},{"$f":"admin!$B$49","v":"mu"},{"$f":"admin!$B$50","v":"yield from 1 mu"},{"$f":"admin!$B$51","v":"price for 1 ton"},{"$f":"admin!$B$52","v":"cost of 1 mu"},{"$f":"admin!$B$49","v":"mu"},{"$f":"admin!$B$50","v":"yield from 1 mu"},{"$f":"admin!$B$51","v":"price for 1 ton"},{"$f":"admin!$B$52","v":"cost of 1 mu"}]
[{"$f":"admin!B32","v":"eggplant"}]
[{"$f":"admin!B38","v":"courgettes"}]
[{"$f":"admin!B26","v":"cabbage"}]
[{"$f":"admin!B5","v":"corn"}]
[{"$f":"admin!B33","v":"onion"}]
[{"$f":"admin!B27","v":"cucumbers"}]
[{"$f":"admin!B31","v":"chili"}]
[{"$f":"admin!B6","v":"sweet Corn"}]
[{"$f":"admin!B7","v":"sorghum"}]
[{"$f":"admin!B18","v":"Soybean"}]
[{"$f":"admin!B24","v":"tomatoes"}]
[{"$f":"admin!B35","v":"watermelon"}]
[{"$f":"admin!B36","v":"melon"}]
[{"$f":"admin!B30","v":"potatoes"}]
[{"$f":"admin!B22","v":"Alfaalfa"}]
[{"$f":"admin!B25","v":"carrots"}]
[{"$f":"admin!B13","v":"winter wheat"}]
[{"$f":"admin!B16","v":"millet"}]
[{"$f":"admin!B37","v":"pumpkin"}]
[{"$f":"admin!B19","v":"peas"}]
[{"$f":"admin!B20","v":"buckwheat"}]
[{"$f":"admin!B21","v":"chickpeas"}]
[{"$f":"admin!B17","v":"oats"}]
[{"$f":"admin!B14","v":"autumn rape"}]
[{"$f":"admin!B9","v":"winter barley"}]
[{"$f":"admin!B12","v":"sunflower"}]
[{"$f":"admin!B11","v":"rye / triticale"}]
[{"$f":"admin!B28","v":"sugar beet"}]
[{"$f":"admin!B29","v":"beet"}]
[{"$f":"admin!B34","v":"garlic"}]
[{"$f":"admin!B8","v":"spring wheat"}]
[{"$f":"admin!B15","v":"spring rape"}]
[{"$f":"admin!B10","v":"spring barley"}]

{"sheet":"admin","index":1,"n_rows":52,"n_cols":8,"rows_kept":52,"cut":false,"hidden":false,"merged":[]}
[]
[null,"常见种植物"]
[null,{"$f":"IF('2014-2015'!B1=admin!C3,1,IF('2014-2015'!B1=admin!D3,2,3))","v":2},"Chinese","English","Russian"]
[null,{"$f":"CHOOSE($B$3,C4,D4,E4)","v":"Crops"},"作物名称","Crops","Наименование с/х культуры"]
[null,{"$f":"CHOOSE($B$3,C5,D5,E5)","v":"corn"},"玉米","corn","Кукуруза"]
[null,"sweet Corn","甜玉米","sweet Corn","Сладкая кукуруза"]
[null,"sorghum","高粱","sorghum","Сорго",null,null,"不适用的作物"]
[null,"spring wheat","春小麦","spring wheat","Ярая пшеница",null,null,"确认类别"]
[null,"winter barley","秋大麦","winter barley","Озимый ячмень",null,null,"翻译修改"]
[null,"spring barley","春大麦","spring barley","Ярый ячмень"]
[null,"rye / triticale","黑麦","rye / triticale","Рожь/Тритикале"]
[null,"sunflower","向日葵","sunflower","Подсолнечник",null,"需要补充的"]
[null,"winter wheat","冬小麦","winter wheat","Озимая пшеница",null,"豆角"]
[null,"autumn rape","秋油菜","autumn rape","Озимый Рапс",null,"青椒"]
[null,"spring rape","春油菜","spring rape","Ярый Рапс",null,"尖椒"]
[null,"millet","谷子","millet","Просо",null,"洋葱"]
[null,"oats","燕麦","oats","Овес",null,"大葱"]
[null,"Soybean","黄豆","Soybean","Соя",null,"秋葵"]
[null,"peas","豌豆","peas","Горох",null,"芹菜"]
[null,"buckwheat","荞麦","buckwheat","Гречиха"]
[null,"chickpeas","鹰嘴豆","chickpeas","Нут"]
[null,"Alfaalfa","苜蓿","Alfaalfa","Люцерна"]
[]
[null,"tomatoes","西红柿","tomatoes","Томаты"]
[null,"carrots","胡萝卜","carrots","Морковь"]
[null,"cabbage","白菜","cabbage","Капуста"]
[null,"cucumbers","黄瓜","cucumbers","Огурцы"]
[null,"sugar beet","制糖类-甜菜","sugar beet","Свекла сахарная"]
[null,"beet","食品用-甜菜","beet","Свекла столовая"]
[null,"potatoes","马铃薯-土豆","potatoes","Картофель"]
[null,"chili","辣椒","chili","Перец"]
[null,"eggplant","茄子","eggplant","Баклажан"]
[null,"onion","洋葱（大葱）","onion","Лук"]
[null,"garlic","大蒜","garlic","Чеснок"]
[null,"watermelon","西瓜","watermelon","Арбуз"]
[null,"melon","香瓜","melon","Дыня"]
[null,"pumpkin","南瓜","pumpkin","Тыква"]
[null,"courgettes","西葫芦（北瓜）","courgettes","Кабачки"]
[]
[null,"非常见种植物"]
[]
[]
[]
[]
[]
[null,"[Name of the company / or the name of the borrower]","企业名称/借款人姓名","[Name of the company / or the name of the borrower]","[Наименование предприятия/или ФИО заемщика]"]
[null,"PLAN","计划","PLAN","ПЛАН"]
[null,"FACT","实际情况","FACT","ФАКТ"]
[null,"mu","亩","mu","му"]
[null,"yield from 1 mu","亩产量","yield from 1 mu","урожайность с 1 му"]
[null,"price for 1 ton","单价/吨","price for 1 ton","цена за 1 т"]
[null,"cost of 1 mu","成本/亩","cost of 1 mu","Себестоимость 1 му"]